fUSD/lending_fUSD_20260108
["ID","MTS","AMOUNT","RATE_DAILY","PERIOD"]
[400873867,1767850243887,-300.0,0.0001787,2]
[400873869,1767850243897,-300.0,0.00017871,2]
[400873871,1767850243906,-177.4888516,0.00017872,3]
[400873873,1767850243915,-25000.0,0.00017874,3]
[400873875,1767850243924,-3871.87879,0.0001788,2]
[400873877,1767850243933,-25000.0,0.00017882,3]
[400873888,1767850244037,-150.0,0.00017891,2]
[400873890,1767850244047,-25000.0,0.00017891,3]
[400873892,1767850244056,-25000.0,0.000179,3]
[400873894,1767850244064,-261.39999377,0.000179,2]
[400873896,1767850244074,-637.69822592,0.000179,2]
[400873898,1767850244082,-9599.12191046,0.000179,2]
[400873900,1767850244091,-168.51620742,0.000179,2]
[400873902,1767850244101,-846.37819096,0.000179,2]
[400873904,1767850244110,-12855.0,0.000179,2]
[400873906,1767850244119,-3871.8788,0.0001791,2]
[400873907,1767850244128,-300.0,0.00017911,2]
[400873909,1767850244137,-640.24385345,0.00017911,2]
[400873911,1767850244146,-300.0,0.00017918,2]
[400873913,1767850244156,-1252.0,0.00017931,2]
[400873915,1767850244164,-833.4,0.00017933,2]
[400873917,1767850244174,-150.0,0.00017945,2]
[400873919,1767850244183,-300.0,0.00017947,2]
[400873921,1767850244192,-1000.0,0.0001797,2]
[400873923,1767850244201,-500.0,0.0001797,2]
[400873925,1767850244210,-1000.0,0.0001797,2]
[400873927,1767850244219,-500.0,0.0001797,2]
[400873929,1767850244227,-1000.0,0.0001797,2]
[400873931,1767850244236,-500.0,0.0001797,2]
[400873932,1767850244246,-1000.0,0.0001797,2]
[400873934,1767850244255,-984.41347442,0.0001797,2]
[400873936,1767850244264,-1000.0,0.0001797,2]
[400873938,1767850244273,-1000.0,0.0001797,2]
[400873940,1767850244282,-1000.0,0.0001797,2]
[400873942,1767850244291,-1000.0,0.0001797,2]
[400873944,1767850244300,-1246.54474908,0.0001797,2]
[400873945,1767850244309,-500.0,0.0001797,2]
[400873947,1767850244318,-1000.0,0.0001797,2]
[400873949,1767850244327,-500.17178809,0.00017973,2]
[400873951,1767850244336,-500.0,0.00017973,2]
[400873953,1767850244345,-500.0,0.00017973,2]
[400873955,1767850244354,-500.75581913,0.00017973,2]
[400873957,1767850244363,-500.0,0.00017973,2]
[400873958,1767850244372,-501.18870733,0.00017973,2]
[400873960,1767850244381,-338.62982115,0.00017973,2]
[400873962,1767850244391,-500.0,0.00017973,2]
[400873964,1767850244400,-150.0,0.00017973,2]
[400873966,1767850244409,-500.0,0.00017982,2]
[400873968,1767850244418,-790.96089808,0.0001799,2]
[400873970,1767850244427,-790.96089808,0.0001799,2]
[400873972,1767850244436,-194.549792,0.00017997,2]
[400873973,1767850244447,-500.0,0.00017998,2]
[400873975,1767850244458,-177.65368226,0.00017999,2]
[400873977,1767850244467,-135119.5703307,0.00017999,2]
[400873979,1767850244476,-300.0,0.00017999,2]
[400873981,1767850244485,-338.00886573,0.00017999,2]
[400873983,1767850244493,-300.0,0.00017999,2]
[400873985,1767850244503,-699.55468964,0.00017999,2]
[400873987,1767850244512,-300.0,0.00017999,2]
[400873988,1767850244523,-666.0,0.00017999,2]
[400873989,1767850244532,-163.94994864,0.00017999,2]
[400873990,1767850244541,-300.0,0.00017999,2]
[400873991,1767850244550,-666.0,0.00017999,2]
[400873992,1767850244559,-5970.77362135,0.00017999,2]
[400873993,1767850244568,-154.67877044,0.00018,2]
[400873994,1767850244577,-4566900.60834425,0.00018,2]
[400874048,1767850245249,-570.01455073,0.00018,2]
[400874066,1767850245418,-1123.42602351,0.00018,2]
[400874068,1767850245430,-2315.09651318,0.00018,2]
[400874090,1767850245643,-1.7e-07,0.00018,2]
[400874110,1767850245834,-972.15998328,0.00018,2]
[400874127,1767850245982,-541.82394898,0.00017348,2]
[400874129,1767850245993,-709.17,0.00017348,2]
[400874131,1767850246009,-9423.87939226,0.00017348,2]
[400874134,1767850246019,-3467.0,0.00017494,2]
[400874136,1767850246032,-508172.35762416,0.00018,2]
[400874158,1767850246238,-13209.030554,0.00018,2]
[400874160,1767850246250,-405.8537147,0.00018,2]
[400874162,1767850246261,-4296.75088854,0.00018,2]
[400874166,1767850246280,-1081.03893058,0.00018,2]
[400874168,1767850246291,-11856.94146657,0.00018,2]
[400877245,1767850357880,-410.11496642,0.00012872,2]
[400877246,1767850360403,-400.02526674,0.00012872,2]
[400877249,1767850386106,-381.18452425,0.00012872,2]
[400877250,1767850390983,-343.24253653,0.00012872,2]
[400877251,1767850391703,200.01263337,0.00012844,2]
[400877252,1767850392447,-250.0,0.00012872,2]
[400877276,1767850393536,200.01263337,0.00012844,2]
[400877287,1767850393880,-252.1412399,0.00012872,2]
[400877305,1767850396677,-160.16809642,0.00012872,2]
[400877400,1767850423513,1005.55187285,0.00012838,2]
[400877416,1767850456246,469.259533,0.00012839,2]
[400877418,1767850467142,4859.56095523,0.00012844,2]
[400877425,1767850499115,-300.0,0.00012904,2]
[400877426,1767850499147,-300.0,0.00012936,2]
[400877427,1767850499177,-150.0,0.00012937,2]
[400877428,1767850499210,-177.93746514,0.00012937,2]
[400877429,1767850499244,-500.0,0.00012937,2]
[400877430,1767850499278,-500.0,0.00012937,2]
[400877431,1767850499314,-500.0,0.00012937,2]
[400877432,1767850499350,-500.0,0.00012937,2]
[400877433,1767850499384,-500.0,0.00012937,2]
[400877434,1767850499420,-500.0,0.00012937,2]
[400877435,1767850499456,-500.0,0.00012937,2]
[400877436,1767850499494,-500.0,0.00012937,2]
[400877437,1767850500516,-500.0,0.00012937,2]
[400877438,1767850500553,-500.0,0.00012937,2]
[400877439,1767850500588,-500.0,0.00012937,2]
[400877440,1767850500624,-500.0,0.00012937,2]
[400877441,1767850500661,-500.0,0.00012937,2]
[400877442,1767850500697,-500.0,0.00012937,2]
[400877443,1767850500732,-500.0,0.00012937,2]
[400877444,1767850500767,-500.0,0.00012937,2]
[400877445,1767850500801,-500.0,0.00012937,2]
[400877446,1767850500836,-500.0,0.00012937,2]
[400877447,1767850502027,-300.0,0.00012936,2]
[400877448,1767850502058,-1200.0,0.00012936,2]
[400877450,1767850502095,-500.0,0.00012937,2]
[400877451,1767850502132,-500.0,0.00012937,2]
[400877452,1767850502166,-500.0,0.00012937,2]
[400877453,1767850502203,-500.0,0.00012937,2]
[400877455,1767850502239,-500.0,0.00012937,2]
[400877456,1767850502286,-500.0,0.00012937,2]
[400877458,1767850502324,-500.0,0.00012937,2]
[400877460,1767850505050,-297.78529476,0.00012937,2]
[400877461,1767850505089,-500.0,0.00012937,2]
[400877462,1767850505127,-500.0,0.00012937,2]
[400877463,1767850505167,-500.0,0.00012937,2]
[400877464,1767850505206,-500.0,0.00012937,2]
[400877465,1767850505252,-500.0,0.00012937,2]
[400877467,1767850505292,-278.65108031,0.00012937,2]
[400877468,1767850505331,-500.0,0.00012937,2]
[400877469,1767850505369,-225.60583174,0.00012937,2]
[400877480,1767850508382,-5833.30743599,0.00012938,2]
[400877482,1767850552365,-223.4736911,0.00012844,2]
[400877483,1767850555480,-163.43658367,0.00012844,2]
[400877485,1767850557039,-300.0,0.00012844,2]
[400877486,1767850559467,-500.0,0.00012844,2]
[400877493,1767850560996,-236.62451768,0.00012844,2]
[400877524,1767850566565,-157.9150788,0.00012844,2]
[400877538,1767850568541,-259.74567267,0.00012844,2]
[400877543,1767850570369,-344.84854812,0.00012844,2]
[400877544,1767850573691,-237.49070041,0.00012844,2]
[400877545,1767850575858,-534.14261499,0.00012844,2]
[400877560,1767850578026,-546.10582028,0.00012844,2]
[400877562,1767850581170,-264.0,0.00012844,2]
[400877570,1767850583644,-404.0648565,0.00012844,2]
[400877573,1767850585771,-212.515,0.00012838,2]
[400877574,1767850587323,-358.93138377,0.00012838,2]
[400877575,1767850589411,-223.98433827,0.00012838,2]
[400877576,1767850591020,-300.0,0.00012838,2]
[400877577,1767850593236,-355.71847812,0.00012838,2]
[400877578,1767850593262,-37.83242494,0.00012844,2]
[400877579,1767850596850,-621.67660694,0.00012844,2]
[400877587,1767850598320,-426.91222496,0.00012844,2]
[400877588,1767850600018,-351.97246794,0.00012844,2]
[400877600,1767850602687,-170.91286775,0.00012844,2]
[400877601,1767850604677,-332.49033583,0.00012844,2]
[400877602,1767850606371,-242.0811956,0.00012844,2]
[400877606,1767850609025,-500.0,0.00012844,2]
[400877647,1767850611184,-203.43128444,0.00012844,2]
[400877659,1767850666614,-300.0,0.00012843,2]
[400877660,1767850666645,-3590.55061305,0.00012844,2]
[400877661,1767850666675,-156.27399869,0.00012844,2]
[400877662,1767850666706,-156.27399869,0.00012844,2]
[400877663,1767850666736,-151.0,0.00012931,2]
[400877664,1767850666767,-151.0,0.00012931,2]
[400877665,1767850666798,-151.0,0.00012931,2]
[400877666,1767850666829,-151.0,0.00012931,2]
[400877667,1767850666859,-151.0,0.00012931,2]
[400877668,1767850667469,-83.81277914,0.00012931,2]
[400877669,1767850669693,-67.18722086,0.00012931,2]
[400877670,1767850669722,-151.0,0.00012931,2]
[400877671,1767850669753,-151.0,0.00012931,2]
[400877672,1767850669783,-151.0,0.00012931,2]
[400877673,1767850669813,-151.0,0.00012931,2]
[400877674,1767850669843,-151.0,0.00012931,2]
[400877675,1767850669873,-151.0,0.00012931,2]
[400877676,1767850669903,-151.0,0.00012931,2]
[400877677,1767850669932,-151.0,0.00012931,2]
[400877678,1767850669962,-151.0,0.00012931,2]
[400877679,1767850669992,-151.0,0.00012931,2]
[400877680,1767850670022,-151.0,0.00012931,2]
[400877681,1767850670055,-151.0,0.00012931,2]
[400877682,1767850670086,-151.0,0.00012931,2]
[400877683,1767850670114,-151.0,0.00012931,2]
[400877684,1767850670143,-151.0,0.00012931,2]
[400877685,1767850670173,-151.0,0.00012931,2]
[400877686,1767850670202,-151.0,0.00012931,2]
[400877687,1767850670232,-500.0,0.00012931,2]
[400877688,1767850670261,-151.0,0.00012931,2]
[400877689,1767850670291,-151.0,0.00012931,2]
[400877690,1767850670321,-500.0,0.00012931,2]
[400877691,1767850670350,-151.0,0.00012931,2]
[400877692,1767850670380,-151.0,0.00012931,2]
[400877693,1767850670408,-500.0,0.00012931,2]
[400877694,1767850670439,-151.0,0.00012931,2]
[400877695,1767850670468,-70.63555828,0.00012931,2]
[400877696,1767850670907,-80.36444172,0.00012931,2]
[400877697,1767850672685,-500.0,0.00012931,2]
[400877698,1767850672717,-151.0,0.00012931,2]
[400877699,1767850672748,-500.0,0.00012931,2]
[400877700,1767850672780,-151.0,0.00012931,2]
[400877701,1767850672813,-500.0,0.00012931,2]
[400877702,1767850672844,-200.0,0.00012931,2]
[400877703,1767850672875,-500.0,0.00012931,2]
[400877704,1767850672906,-633.89985627,0.00012931,2]
[400877705,1767850672936,-200.0,0.00012931,2]
[400877706,1767850672965,-500.0,0.00012931,2]
[400877707,1767850672994,-200.0,0.00012931,2]
[400877708,1767850673023,-778.83028746,0.00012937,2]
[400877709,1767850673215,-370.54971254,0.00012937,2]
[400877710,1767850678809,-150.0,0.00012937,2]
[400877711,1767850678839,-250.0,0.00012938,2]
[400877712,1767850678895,-9200.01,0.00012938,2]
[400877752,1767850792380,-252.177763,0.00012838,2]
[400877753,1767850793995,-167.62014212,0.00012838,2]
[400877754,1767850797024,-165.54985788,0.00012838,2]
[400877755,1767850799111,-290.29070041,0.00012838,2]
[400877756,1767850801145,-341.157111,0.00012838,2]
[400877761,1767850846611,1216.795574,0.00012774,2]
[400877762,1767850889707,-1283.20442559,0.00012838,2]
[400877763,1767850889740,-166.29668514,0.00012844,2]
[400877764,1767850889772,-165.64540401,0.00012844,2]
[400877765,1767850889804,-165.64540398,0.00012844,2]
[400877766,1767850889836,-1200.0,0.00012936,2]
[400877767,1767850889869,-300.0,0.00012936,2]
[400877768,1767850889900,-1200.0,0.00012937,2]
[400877769,1767850890366,-150.0,0.00012937,2]
[400877770,1767850890398,-200.0,0.00012938,2]
[400877771,1767850893009,151.0,0.0001268,2]
[400877772,1767850893034,25.986,0.0001268,2]
[400877773,1767850893078,125.014,0.0001268,2]
[400877774,1767850895767,-2553.195,0.0001268,2]
[400877775,1767850895827,-4032.04616256,0.00012938,2]
[400877776,1767850898793,-10000.01,0.00012938,2]
[400877778,1767850928846,2500.0,0.00012838,2]
[400877779,1767850935501,7500.01,0.00012844,2]
[400877780,1767850935526,3983.55488456,0.00012844,2]
[400877782,1767850978087,6016.45511544,0.00012844,2]
[400877783,1767850978113,4569.05211801,0.00012844,2]
[400877840,1767851017633,167.41921022,0.00012844,2]
[400877841,1767851019390,167.41921022,0.00012844,2]
[400877843,1767851053303,150.1,0.00010019,2]
[400877844,1767851063273,150.1,0.00010019,2]
[400877845,1767851065368,4579.8499,0.00012838,2]
[400877846,1767851073258,150.1,0.00010019,2]
[400877847,1767851077870,65.96956155,0.00012838,2]
[400877848,1767851083900,163.90468149,0.00010019,2]
[400877854,1767851173154,200.0,0.00012525,2]
[400877855,1767851177486,-2434.03043845,0.00012838,2]
[400877856,1767851177520,-399.47409687,0.00012844,2]
[400877857,1767851177553,-209.59731183,0.00012844,2]
[400877858,1767851177585,-209.59731183,0.00012844,2]
[400877859,1767851177615,-1200.0,0.0001293,2]
[400877860,1767851180287,-250.41666969,0.00012841,2]
[400877861,1767851180322,-1200.0,0.0001293,2]
[400877862,1767851180355,-300.0,0.0001293,2]
[400877863,1767851180389,-500.0,0.00012931,2]
[400877864,1767851180423,-307.8049795,0.00012931,2]
[400877865,1767851180457,-151.0,0.00012931,2]
[400877866,1767851180491,-151.0,0.00012931,2]
[400877867,1767851180525,-151.0,0.00012931,2]
[400877868,1767851180561,-151.0,0.00012931,2]
[400877869,1767851180595,-151.0,0.00012931,2]
[400877870,1767851180627,-151.0,0.00012931,2]
[400877871,1767851180661,-151.0,0.00012931,2]
[400877872,1767851180694,-151.0,0.00012931,2]
[400877873,1767851180727,-151.0,0.00012931,2]
[400877874,1767851180761,-179.47537176,0.00012931,2]
[400877875,1767851180798,-500.0,0.00012935,2]
[400877876,1767851180839,-306.6159581,0.00012935,2]
[400877877,1767851183569,-193.3840419,0.00012935,2]
[400877878,1767851183607,-500.0,0.00012935,2]
[400877879,1767851183645,-500.0,0.00012935,2]
[400877880,1767851183681,-500.0,0.00012935,2]
[400877881,1767851183718,-500.0,0.00012935,2]
[400877882,1767851183755,-500.0,0.00012935,2]
[400877883,1767851183794,-500.0,0.00012935,2]
[400877884,1767851183832,-500.0,0.00012935,2]
[400877885,1767851183869,-500.0,0.00012935,2]
[400877886,1767851183905,-500.0,0.00012935,2]
[400877887,1767851183940,-113.2419162,0.00012935,2]
[400877888,1767851185837,500.11071458,0.000145,3]
[400877889,1767851189619,-386.7580838,0.00012935,2]
[400877890,1767851189656,-500.0,0.00012935,2]
[400877891,1767851189690,-500.0,0.00012935,2]
[400877892,1767851189724,-500.0,0.00012935,2]
[400877893,1767851189757,-500.0,0.00012935,2]
[400877894,1767851189791,-500.0,0.00012935,2]
[400877895,1767851189826,-500.0,0.00012935,2]
[400877896,1767851189859,-500.0,0.00012935,2]
[400877897,1767851189895,-500.0,0.00012935,2]
[400877898,1767851189930,-500.0,0.00012935,2]
[400877900,1767851275195,-425.6574,0.00012838,2]
[400877901,1767851275225,-3072.2527,0.00012838,2]
[400877902,1767851275256,-626.22881488,0.00012931,2]
[400877903,1767851275299,-151.0,0.00012931,2]
[400877904,1767851275333,-151.0,0.00012931,2]
[400877905,1767851275369,-300.0,0.00012934,2]
[400877906,1767851275405,-247.48099069,0.00012934,2]
[400877907,1767851278110,-52.77018886,0.00012934,2]
[400877908,1767851278145,-500.0,0.00012934,2]
[400877909,1767851278180,-500.0,0.00012934,2]
[400877910,1767851278214,-500.0,0.00012934,2]
[400877911,1767851278247,-500.0,0.00012934,2]
[400877912,1767851278286,-500.0,0.00012934,2]
[400877913,1767851278323,-500.0,0.00012934,2]
[400877914,1767851278359,-500.0,0.00012934,2]
[400877915,1767851278394,-500.0,0.00012934,2]
[400877916,1767851278429,-500.0,0.00012934,2]
[400877917,1767851278464,-394.46962228,0.00012934,2]
[400877918,1767851282071,-105.53037772,0.00012934,2]
[400877919,1767851282121,-500.0,0.00012934,2]
[400877920,1767851282168,-500.0,0.00012934,2]
[400877921,1767851282216,-500.0,0.00012934,2]
[400877922,1767851282262,-500.0,0.00012934,2]
[400877923,1767851282312,-500.0,0.00012934,2]
[400877924,1767851282363,-500.0,0.00012934,2]
[400877925,1767851282411,-500.0,0.00012934,2]
[400877926,1767851282460,-500.0,0.00012934,2]
[400877927,1767851282510,-500.0,0.00012934,2]
[400877928,1767851282558,-288.94924456,0.00012934,2]
[400877931,1767851337854,-1906.69428067,0.00012838,2]
[400877932,1767851337871,-10000.01,0.00012838,2]
[400877933,1767851339427,-10000.01,0.00012838,2]
[400877935,1767851352895,-300.0,0.00012837,2]
[400877936,1767851352935,-9400.01,0.00012838,2]
[400877937,1767851353028,-10000.01,0.00012838,2]
[400877939,1767851370264,-10000.01,0.00012838,2]
[400877940,1767851370614,-10000.01,0.00012838,2]
[400877941,1767851370779,-10000.01,0.00012838,2]
[400877942,1767851370891,-10000.01,0.00012838,2]
[400877943,1767851371008,-10000.01,0.00012838,2]
[400877944,1767851371295,-10000.01,0.00012838,2]
[400877945,1767851371411,-10000.01,0.00012838,2]
[400877946,1767851371514,-10000.01,0.00012838,2]
[400877947,1767851371636,-10000.01,0.00012838,2]
[400877948,1767851376387,-10000.01,0.00012838,2]
[400877949,1767851376517,-10000.01,0.00012838,2]
[400877950,1767851376675,-10000.01,0.00012838,2]
[400877951,1767851376772,-10000.01,0.00012838,2]
[400877952,1767851376894,-10000.01,0.00012838,2]
[400877953,1767851377012,-10000.01,0.00012838,2]
[400877954,1767851377292,-10000.01,0.00012838,2]
[400877955,1767851377392,-10000.01,0.00012838,2]
[400877956,1767851377502,-10000.01,0.00012838,2]
[400877960,1767851425295,-300.0,0.00012837,2]
[400877961,1767851425331,-1200.0,0.00012837,2]
[400877962,1767851425365,-300.0,0.00012837,2]
[400877963,1767851425454,-6400.01,0.00012838,2]
[400877964,1767851425533,-10000.01,0.00012838,2]
[400877965,1767851425641,-10000.01,0.00012838,2]
[400877966,1767851425751,-10000.01,0.00012838,2]
[400877970,1767851437832,-1356.68945114,0.00012838,2]
[400877971,1767851437844,-2157.13581251,0.00012838,2]
[400877972,1767851437855,-1277.73173864,0.00012838,2]
[400877973,1767851437872,-5876.43668177,0.00012838,2]
[400877974,1767851437998,-731625.05203527,0.00012838,2]
[400877975,1767851438008,-2500.0,0.00012838,2]
[400877976,1767851438018,-13059.84234571,0.00012844,2]
[400877977,1767851438027,-1200.0,0.00012918,2]
[400877978,1767851438036,-16498.2168804,0.00012919,2]
[400877979,1767851438046,-150.0,0.00012933,2]
[400877980,1767851438055,-1193.74,0.00012933,2]
[400877981,1767851438064,-447.1904054,0.00012933,2]
[400877982,1767851438074,-410.76191131,0.00012933,2]
[400877983,1767851438083,-338.54968192,0.00012933,2]
[400877984,1767851438092,-500.0,0.00012933,2]
[400877985,1767851438101,-500.0,0.00012933,2]
[400877986,1767851438111,-624.99745852,0.00012933,2]
[400877987,1767851438120,-500.0,0.00012933,2]
[400877988,1767851438129,-500.0,0.00012933,2]
[400877989,1767851438138,-500.0,0.00012933,2]
[400877990,1767851438147,-500.0,0.00012933,2]
[400877991,1767851438157,-500.0,0.00012933,2]
[400877992,1767851438166,-500.0,0.00012933,2]
[400877993,1767851438175,-500.0,0.00012933,2]
[400877994,1767851438184,-500.0,0.00012933,2]
[400877995,1767851438193,-500.0,0.00012933,2]
[400877996,1767851438203,-500.0,0.00012933,2]
[400877997,1767851438212,-500.0,0.00012933,2]
[400877999,1767851438221,-500.0,0.00012933,2]
[400878001,1767851438230,-500.0,0.00012933,2]
[400878002,1767851438239,-500.0,0.00012933,2]
[400878003,1767851438249,-500.0,0.00012933,2]
[400878004,1767851438258,-500.0,0.00012933,2]
[400878005,1767851438267,-500.0,0.00012933,2]
[400878007,1767851438276,-500.0,0.00012933,2]
[400878009,1767851438286,-390.79053287,0.00012933,2]
[400878010,1767851438295,-500.0,0.00012933,2]
[400878011,1767851438304,-761.82758072,0.00012933,2]
[400878012,1767851438317,-761.82758072,0.00012933,2]
[400878013,1767851438326,-761.82758072,0.00012933,2]
[400878014,1767851438336,-1002.56468536,0.00012937,2]
[400878015,1767851438345,-14528.41498042,0.00012937,2]
[400878016,1767851438355,-200.0,0.00012938,2]
[400878017,1767851438364,-10723.6779,0.00012944,2]
[400878018,1767851438374,-1000.0,0.00012944,2]
[400878020,1767851438384,-345.56101784,0.00012993,2]
[400878023,1767851438394,-9999.99,0.00012993,2]
[400878026,1767851438403,-200.0,0.00013067,2]
[400878029,1767851438412,-5708.28,0.00013067,2]
[400878032,1767851438422,-2621.34,0.00013067,2]
[400878034,1767851438431,-83092.2,0.00013067,2]
[400878036,1767851438440,-9999.99,0.00013067,2]
[400878038,1767851438449,-150.99,0.00013067,2]
[400878040,1767851438459,-299.99,0.00013067,2]
[400878042,1767851438468,-169.89,0.00013067,2]
[400878044,1767851438479,-999.99,0.00013067,2]
[400878045,1767851438488,-150.99,0.00013067,2]
[400878047,1767851438497,-8882.54,0.00013067,2]
[400878050,1767851438507,-9999.99,0.00013067,2]
[400878051,1767851438516,-200.0,0.00013067,2]
[400878053,1767851438525,-500.0,0.00013067,2]
[400878055,1767851438535,-200.0,0.00013198,2]
[400878057,1767851438544,-200.0,0.00013198,2]
[400878059,1767851438553,-1193.74,0.00013207,2]
[400878061,1767851438563,-6086.77,0.00013273,2]
[400878063,1767851438572,-10387.24651459,0.00013306,2]
[400878065,1767851438582,-200.0,0.0001333,2]
[400878067,1767851438591,-200.0,0.0001333,2]
[400878070,1767851438601,-542.89957297,0.00013341,2]
[400878072,1767851438610,-5341.12139439,0.00013358,2]
[400878074,1767851438620,-13059.84234563,0.00013406,2]
[400878076,1767851438629,-166.66,0.00013412,2]
[400878078,1767851438640,-200.0,0.00013463,2]
[400878080,1767851438650,-200.0,0.00013463,2]
[400878082,1767851438659,-1193.74,0.00013481,2]
[400878084,1767851438669,-1165.52,0.00013546,2]
[400878085,1767851438678,-399.47409683,0.00013687,2]
[400878087,1767851438687,-500.0,0.00013698,2]
[400878089,1767851438696,-500.0,0.00013698,2]
[400878091,1767851438705,-410.25491874,0.00013698,2]
[400878093,1767851438715,-500.0,0.00013698,2]
[400878095,1767851438724,-500.0,0.00013698,2]
[400878097,1767851438734,-500.0,0.00013698,2]
[400878098,1767851438743,-500.0,0.00013698,2]
[400878100,1767851438752,-500.0,0.00013698,2]
[400878102,1767851438763,-500.0,0.00013698,2]
[400878104,1767851438772,-500.0,0.00013698,2]
[400878106,1767851438782,-363.73176274,0.00013698,2]
[400878108,1767851438791,-500.0,0.00013698,2]
[400878110,1767851438800,-500.0,0.00013698,2]
[400878112,1767851438810,-500.0,0.00013698,2]
[400878114,1767851438819,-500.0,0.00013698,2]
[400878116,1767851438828,-198.43935064,0.00013698,2]
[400878118,1767851438837,-500.0,0.00013698,2]
[400878120,1767851438846,-184.55624416,0.00013698,2]
[400878122,1767851438855,-1193.74,0.00013755,2]
[400878124,1767851438865,-246.55,0.00013776,2]
[400878126,1767851438874,-166.66,0.00013855,2]
[400878128,1767851438883,-13059.84234563,0.00013968,2]
[400878129,1767851438893,-37117.36,0.00014019,2]
[400878131,1767851438902,-1193.74,0.00014029,2]
[400878133,1767851438912,-255.0,0.00014033,2]
[400878135,1767851438922,-420.0,0.00014081,2]
[400878137,1767851438932,-420.0,0.00014081,2]
[400878140,1767851438942,-195.0,0.00014121,2]
[400878141,1767851438954,-326.27279092,0.00014121,2]
[400878143,1767851438964,-250.0,0.00014121,2]
[400878145,1767851438973,-193.0,0.00014121,2]
[400878147,1767851438982,-300.0,0.00014121,2]
[400878149,1767851438991,-300.0,0.00014121,2]
[400878151,1767851439000,-1680.0,0.00014121,2]
[400878153,1767851439010,-250.0,0.00014122,2]
[400878155,1767851439020,-300.0,0.00014122,2]
[400878157,1767851439030,-300.0,0.00014122,2]
[400878159,1767851439040,-195.0,0.00014122,2]
[400878161,1767851439049,-300.0,0.00014122,2]
[400878163,1767851439058,-250.0,0.00014122,2]
[400878165,1767851439068,-193.0,0.00014122,2]
[400878167,1767851439077,-370.46226598,0.00014122,2]
[400878169,1767851439086,-1680.0,0.00014168,2]
[400878171,1767851439095,-2107.0,0.00014174,2]
[400878173,1767851439104,-2500.0,0.00014227,2]
[400878175,1767851439115,-2500.0,0.00014227,2]
[400878177,1767851439124,-2500.0,0.00014227,2]
[400878179,1767851439133,-300.0,0.00014227,2]
[400878181,1767851439142,-152.17141778,0.00014227,2]
[400878183,1767851439151,-5000.0,0.00014227,2]
[400878185,1767851439160,-195.0,0.00014228,2]
[400878187,1767851439170,-500.0,0.00014274,2]
[400878189,1767851439179,-276.96693716,0.00014289,2]
[400878191,1767851439188,-276.96693716,0.00014289,2]
[400878193,1767851439198,-166.66,0.00014298,2]
[400878195,1767851439207,-1193.74,0.00014303,2]
[400878197,1767851439216,-200.0,0.000145,2]
[400878199,1767851439225,-399.47409683,0.00014529,2]
[400878201,1767851439234,-13059.84234563,0.00014529,2]
[400878203,1767851439244,-500.0,0.00014575,2]
[400878205,1767851439252,-1193.74,0.00014577,2]
[400878206,1767851439261,-200.0,0.00014645,2]
[400878208,1767851439270,-166.66,0.0001474,2]
[400878210,1767851439279,-500.0,0.00014763,2]
[400878212,1767851439288,-500.0,0.00014763,2]
[400878214,1767851439299,-500.0,0.00014763,2]
[400878216,1767851439309,-165.70843486,0.00014763,2]
[400878218,1767851439320,-500.0,0.00014763,2]
[400878220,1767851439329,-500.0,0.00014763,2]